Cogmind - Beta 16 @@@ ROGUE MODE // 2025.10.31 @ 00:07:44 Player: Scringis Result: Destroyed by Cetus Guard with Advanced KE Penetrator Performance ------------- Evolutions (4) 2000 Regions Visited (7) 1400 Robots Destroyed (160) 800 Value Destroyed (6492) 6492 Prototype IDs (8) 160 Alien Tech Used (0) 0 Bonus (308) 308 TOTAL SCORE: 11160 Bonus ------- High Alert Combat Kills 86 Follower Combat Kills 222 Cogmind --------- Core Integrity 0/850 Matter 133/300 Energy 100/100 System Corruption 10% Temperature Cool (9) Movement Core (100) Ox1 Location -6/Cetus Parts ------- > --- POWER (2) -------- (None) > --- PROPULSION (3) --- (None) > --- UTILITY (6) ------ Improved Cooling System Advanced Weight Redist. System Advanced Targeting Computer > --- WEAPON (4) ------- Gauss Rifle > --- INVENTORY (5) ---- Light Angular Momentum Engine Flexi-carbon Leg Improved Heat Sink Advanced Sensor Array Peak State ------------ > --- POWER ------------ Light Nuclear Core Fission Core > --- PROPULSION ------- Flexi-carbon Leg Armored Leg Improved Thunder Leg > --- UTILITY ---------- Advanced Heat Sink Large Storage Unit Advanced Weight Redist. System Advanced Targeting Computer Improved Heavy Armor Plating > --- WEAPON ----------- Lightning Gun Force Rifle Force Rifle Mini Assault Cannon > --- INVENTORY -------- Light Angular Momentum Engine Light Angular Momentum Engine Fusion Compressor Carbon-fiber Leg Carbon-fiber Leg Improved Heat Sink Advanced Heat Sink Advanced Sensor Array Recoil Stabilizer Lightning Gun Force Rifle Force Rifle Heavy Plasma Cannon Plasma Cutter [Rating: 75] Favorites ----------- Power Light Nuclear Core Engine Light Angular Momentum Engine Power Core Light Nuclear Core Propulsion Improved Treads Treads Improved Treads Leg Flexi-carbon Leg Flight Unit Improved VTOL Module Utility Large Storage Unit Device Advanced Weight Redist. System Storage Large Storage Unit Processor Advanced Targeting Computer Protection Improved Light Armor Plating Weapon Minigun Energy Gun Force Rifle Energy Cannon Heavy Ion Cannon Ballistic Gun Minigun Ballistic Cannon Mini Assault Cannon Launcher Missile Launcher Special Weapon Plasma Cutter Slashing Weapon Ripper Build | -11 -10 -9 -8 -7 -6 -6 -6 ------- Run | Yrd Mat Mat Mat Fac Fac Ext Cet Slots Evolved 8 | . . 2 2 2 2 . . Power 1 | . . . . . 1 . . Propulsion 1 | . . . . 1 . . . Utility 4 | . . . 2 1 1 . . Weapon 2 | . . 2 . . . . . Parts Attached 112 | 5 5 12 5 17 21 46 1 Power 19 | . 1 . 1 2 5 10 . Engine 8 | . 1 . . . 2 5 . Core 11 | . . . 1 2 3 5 . Reactor . | . . . . . . . . Propulsion 29 | 2 2 3 . 4 5 13 . Treads 6 | 2 2 2 . . . . . Leg 22 | . . . . 4 5 13 . Wheel . | . . . . . . . . Hover . | . . . . . . . . Flight 1 | . . 1 . . . . . Utility 27 | 1 . 2 3 5 5 11 . Device 13 | . . 1 1 2 3 6 . Storage 2 | 1 . 1 . . . . . Processor 2 | . . . 1 . . 1 . Hackware . | . . . . . . . . Protection 10 | . . . 1 3 2 4 . Artifact . | . . . . . . . . Weapon 37 | 2 2 7 1 6 6 12 1 Energy Gun 9 | 1 . . 1 . 4 3 . Energy Cannon 3 | . . . . 2 . 1 . Ballistic Gun 16 | 1 2 7 . . 2 3 1 Ballistic Cannon 6 | . . . . 3 . 3 . Launcher 1 | . . . . 1 . . . Special Weapon 1 | . . . . . . 1 . Impact Weapon . | . . . . . . . . Slashing Weapon 1 | . . . . . . 1 . Piercing Weapon . | . . . . . . . . Special Melee Weapon . | . . . . . . . . Unidentified Prototypes 6 | . . 2 1 2 1 . . Parts Lost 74 | . . . . 14 18 29 13 Power 16 | . . . . 1 4 7 4 Propulsion 16 | . . . . 4 3 6 3 Utility 15 | . . . . 3 4 6 2 Weapon 27 | . . . . 6 7 10 4 Highest Loss Streak 13 | . . . . 4 7 5 13 To Critical Strikes 3 | . . . . . . . 3 Average Backups 9 | 1 6 7 8 8 7 11 9 Power 1 | 1 1 . 1 2 2 2 2 Propulsion 1 | . 2 3 2 . . 2 2 Utility 1 | . . . . . 1 4 3 Weapon 3 | . 2 2 4 4 2 3 . Tool/Special . | . . . . . . . . Unused Backups 11 | . . 1 . 2 1 1 6 Power 2 | . . 1 . . . . 1 Propulsion 2 | . . . . . . . 2 Utility 4 | . . . . . 1 . 3 Weapon 3 | . . . . 2 . 1 . Tool/Special . | . . . . . . . . Average Slot Usage (%) 86 | . 80 98 91 82 84 88 70 Engine 4 | . 9 11 2 . 1 6 . Core 5 | . . . 6 6 10 3 7 Treads 8 | . 28 21 18 12 . . . Leg 9 | . . . . 2 19 18 17 Device 12 | . . 10 9 11 10 18 15 Storage 7 | . 14 11 9 7 6 6 3 Processor 4 | . . . 1 7 6 5 6 Protection 4 | . . . 8 5 4 3 . Energy Gun 6 | . . 3 . 5 11 9 . Ballistic Gun 11 | . 27 40 35 6 5 1 7 Ballistic Cannon 7 | . . . . 11 6 10 6 Peak Build Rating 75 | 5 9 22 32 42 75 72 66 Average Rating 42 | 3 7 20 27 33 55 61 48 On Entrance 28 | . 5 9 22 32 28 66 66 Avg Prop Armor Cover (%) . | . . . . . . . . Naked Turns . | . . . . . . . . Heaviest Build 73 | 9 14 38 41 61 72 73 69 Greatest Support 85 | 40 46 46 46 66 85 69 65 Greatest Overweight (x) 2 | . . . . 2 1 1 1 Average Overweight (x) . | . . . . . . . . Largest Inventory Capacity 15 | 8 8 15 15 15 15 15 15 Average Capacity 13 | 7 8 8 15 15 15 15 9 Most Carried 15 | 3 8 8 11 12 15 15 13 Average Carried 9 | 1 6 7 8 8 7 11 8 Final Capacity 15 | 8 8 15 15 15 15 15 5 Final Carried 13 | 2 8 8 11 8 12 13 4 Class Distribution -------------------- 51% | Gunner 29% | Scavenger-Gunner 8% | Mutant 7% | Tank Dominant Class ---------------- Mutant | -10/Materials Gunner | -9/Materials Tank | -8/Materials Gunner | -7/Factory Gunner | -6/Factory Scavenger-Gunner | -6/Extension Mutant | -6/Cetus Resources | -11 -10 -9 -8 -7 -6 -6 -6 ----------- Run | Yrd Mat Mat Mat Fac Fac Ext Cet Matter Collected 5836 | 180 109 848 339 1572 811 1977 . Remotely . | . . . . . . . . Salvage Created 6284 | . 183 936 434 1716 1098 1837 80 Parts 289 | . 16 59 22 74 44 70 4 Haulers Intercepted 7 | . . 2 . 2 2 1 . Recyclers Shooed 4 | . . 1 . 1 2 . . Parts Field Recycled . | . . . . . . . . Retrieved Matter . | . . . . . . . . Parts Self-Destructed . | . . . . . . . . Prevented . | . . . . . . . . Parts Restored . | . . . . . . . . Kills | -11 -10 -9 -8 -7 -6 -6 -6 ------- Run | Yrd Mat Mat Mat Fac Fac Ext Cet Combat Hostiles Destroyed 134 | . 8 20 8 46 20 31 1 Guns 71 | . 8 20 8 15 6 13 1 Cannons 55 | . . . . 31 7 17 . AOE 6 | . . . . . 6 . . Classes Destroyed 15 | . 3 6 1 4 . 1 . Worker 3 | . . 1 . 1 1 . . Builder 2 | . . . 1 . . 1 . Hauler 7 | . . 2 . 2 2 1 . Recycler 4 | . . 1 . 1 1 1 . Operator 6 | . 1 2 . 1 2 . . Watcher 4 | . . 2 . 1 . 1 . Swarmer 21 | . 6 4 . 7 4 . . Grunt 68 | . 2 12 8 21 8 17 . Brawler 3 | . . 1 . 1 1 . . Duelist 5 | . . . . 4 1 . . Sentry 18 | . . 3 . 6 2 7 . Hunter 7 | . . . . 1 2 4 . Programmer 8 | . . . . 5 2 1 . Heavy 1 | . . . . 1 . . . Behemoth 2 | . . . . . . 2 . Cetus Guard 1 | . . . . . . . 1 Best Kill Streak 7 | . 2 6 3 5 7 5 1 Combat Bots Only 7 | . 2 4 3 5 7 5 1 Max Kills in Single Turn 4 | . 1 2 1 2 4 2 1 Gunslinging 1 | . . 1 . . . . . Exploded 4 | . . . . . 4 . . Melee . | . . . . . . . . Uniques/NPCs Destroyed . | . . . . . . . . Combat | -11 -10 -9 -8 -7 -6 -6 -6 -------- Run | Yrd Mat Mat Mat Fac Fac Ext Cet Hostile Shots Fired 1080 | . 44 39 20 305 168 436 68 Missed 325 | . 12 8 6 97 49 131 22 Hits 755 | . 32 31 14 208 119 305 46 Melee 19 | . . 1 . 7 11 . . Projectile 736 | . 32 30 14 201 108 305 46 Critical Strikes 23 | . . . . 4 6 6 7 Damage Taken 12081 | . 286 404 218 2957 1983 5005 1228 Core 1503 | . 83 20 18 511 173 584 114 Absorbed by Shields . | . . . . . . . . Core Remaining (%) 76 | 100 66 95 96 27 . . . Volleys Fired 395 | . 33 39 17 127 55 114 10 Largest 4 | . 2 4 4 4 4 4 4 Hottest 280 | . 40 125 100 214 255 280 202 Shots Fired 1204 | . 66 155 68 365 172 361 17 Gun 733 | . 66 155 68 158 114 162 10 Cannon 465 | . . . . 204 55 199 7 Launcher 6 | . . . . 3 3 . . Special . | . . . . . . . . Kinetic 919 | . 66 150 68 258 115 249 13 Thermal 238 | . . 5 . 97 35 97 4 Explosive 6 | . . . . 3 3 . . Electromagnetic 41 | . . . . 7 19 15 . Robot Hit Streak 18 | . 4 14 17 18 16 13 10 Robot Miss Streak 7 | . 5 7 2 5 4 4 2 Penetration Max 1 | . . . . . . . 1 Secondary Targets 3 | . . 2 . 1 . . . Max Gunslinging Chain 1 | . . 1 . 1 . . . Shots Hit Robots 758 | . 29 81 41 245 111 236 15 Core Hits 379 | . 14 37 18 145 60 95 10 Critical Kills 3 | . . . . . . 3 . Critical Parts Destroyed 6 | . . 1 . . 1 4 . Critical Strikes 32 | . . 2 . 10 4 16 . Burn 12 | . . 1 . 10 1 . . Destroy 9 | . . 1 . . 1 7 . Blast 11 | . . . . . 2 9 . Melee Attacks . | . . . . . . . . Impact . | . . . . . . . . Slashing . | . . . . . . . . Piercing . | . . . . . . . . Sneak Attacks . | . . . . . . . . Combat Hostiles . | . . . . . . . . Follow-up Attacks . | . . . . . . . . Damage Inflicted 18026 | . 345 1437 720 5928 3135 6110 351 Guns 8802 | . 345 1416 700 2064 1412 2664 201 Cannons 8298 | . . . . 3737 974 3437 150 Explosions 793 | . . . . 72 721 . . Melee . | . . . . . . . . Ramming 133 | . . 21 20 55 28 9 . Kinetic 12573 | . 345 1378 700 4110 1661 4092 287 Thermal 4068 | . . 38 . 1623 550 1793 64 Explosive 793 | . . . . 72 721 . . Electromagnetic 459 | . . . . 68 175 216 . Impact . | . . . . . . . . Slashing . | . . . . . . . . Piercing . | . . . . . . . . Highest Corruption 10 | . . . . 2 8 10 10 Average Corruption 6 | . . . . 1 6 9 10 Corruption Purged . | . . . . . . . . Corruption Blocked . | . . . . . . . . Effects 152 | . . . . 10 28 110 4 Message Errors 44 | . . . . 3 10 30 1 Matter Fused 39 | . . . . 4 5 29 1 Heat Flow Errors 8 | . . . . . 1 6 1 Energy Discharges 21 | . . . . 2 4 15 . Parts Rejected 1 | . . . . . . 1 . Data Loss (minor) 12 | . . . . . 1 10 1 Data Loss (major) 8 | . . . . . 3 5 . Misfires 5 | . . . . 1 2 2 . Alerts 5 | . . . . . 2 3 . Misdirections 1 | . . . . . . 1 . Weapon Failures 8 | . . . . . . 8 . Overload Shots . | . . . . . . . . Overflow Damage 133 | . . . . 73 33 27 . Projectiles 128 | . . . . 73 28 27 . Explosions 5 | . . . . . 5 . . Melee . | . . . . . . . . Knockbacks 72 | . . . . 42 7 23 . Impact . | . . . . . . . . Kinetic 66 | . . . . 39 6 21 . Secondary 6 | . . . . 3 1 2 . Self-Inflicted Damage . | . . . . . . . . Shots . | . . . . . . . . Rammed 12 | . . 6 1 5 . . . Targets Rammed 22 | . . 7 1 9 3 2 . Kicked 9 | . . . . 4 3 2 . Crushed 1 | . . 1 . . . . . Highest Temperature 434 | . . 229 74 338 434 283 208 Average Temperature 96 | . . 53 30 93 133 72 87 Received Heat Transfer 3083 | . 36 153 126 660 333 1712 63 Effects 9 | . . . . 3 4 2 . Shutdowns 4 | . . . . 1 3 . . Energy Bleed 1 | . . . . . 1 . . Interference 4 | . . . . 2 . 2 . Siege Activations . | . . . . . . . . Martial Activations . | . . . . . . . . Shielding Activations . | . . . . . . . . Robots Disrupted . | . . . . . . . . Combat Hostiles . | . . . . . . . . Robots Corrupted 2 | . . . 1 . 1 . . Combat Hostiles 1 | . . . . . 1 . . Parts Fried 3 | . . . 1 1 1 . . Impact Corruptions 2 | . . . 1 1 . . . Robots Melted 1 | . . . . . . 1 . Combat Hostiles 1 | . . . . . . 1 . Parts Melted 8 | . . 1 . 3 1 3 . Heat Transferred 7258 | . . 185 . 3367 888 2718 100 Parts Sabotaged . | . . . . . . . . Parts Stolen . | . . . . . . . . Parts Stripped . | . . . . . . . . Power Chain Reactions . | . . . . . . . . Alert | -11 -10 -9 -8 -7 -6 -6 -6 ------- Run | Yrd Mat Mat Mat Fac Fac Ext Cet Maximum Alert Level 2 | . . 1 1 2 1 1 . Low Security (%) 80 | 100 100 80 95 84 57 80 100 Level 1 16 | . . 19 4 6 42 19 . Level 2 2 | . . . . 9 . . . Level 3 . | . . . . . . . . Level 4 . | . . . . . . . . Level 5 . | . . . . . . . . High Security . | . . . . . . . . Max Security . | . . . . . . . . Peak Influence 549 | . 99 327 214 549 319 261 136 Initial 267 | . . 38 132 25 267 72 136 Average 124 | . 33 116 136 134 195 95 79 Influence Increases 3916 | . 227 595 203 1290 604 975 22 Destroy 0b10 Robot/C 2800 | . 160 400 160 920 400 740 20 Destroy 0b10 Robot/NC 130 | . 5 40 5 30 30 20 . Destroy Leader 568 | . 30 108 20 216 92 102 . Allied During Kill 33 | . . . . . . 33 . Successful Hack 50 | . . 12 . 17 14 7 . Disable Machine 75 | . . 15 15 15 15 15 . Destroy Structure 95 | . 2 5 3 32 23 28 2 Partial Spotted 15 | . . . . 15 . . . Lose Combat Pursuer 150 | . 30 15 . 45 30 30 . Influence Decreases 3916 | . 136 371 461 800 1002 879 267 Entered New Map 734 | . . 53 183 32 280 77 109 Time Decay 2439 | . 136 318 278 628 542 507 30 Lost Part 700 | . . . . 140 180 252 128 Lost Ally 43 | . . . . . . 43 . Squads Dispatched 35 | . 2 4 . 19 5 5 . Investigation 4 | . . 1 . 1 . 2 . Extermination 7 | . . . . 5 2 . . Reinforcement 15 | . 2 3 . 6 1 3 . Assault 1 | . . . . 1 . . . Garrison 8 | . . . . 6 2 . . Intercept . | . . . . . . . . Searches Triggered . | . . . . . . . . Construction Impeded 4 | . . . . 1 . 3 . Haulers Reinforced 1 | . . . . 1 . . . Active Scanning Responses . | . . . . . . . . Cargo Convoy Interrupts . | . . . . . . . . Stealth | -11 -10 -9 -8 -7 -6 -6 -6 --------- Run | Yrd Mat Mat Mat Fac Fac Ext Cet Distress Signals 7 | . 1 2 . 2 . 1 1 Communications Jammed . | . . . . . . . . Distress Signals . | . . . . . . . . Times Spotted 187 | . 14 28 8 63 26 43 5 Peak Tracking Total 8 | . 5 4 3 6 8 6 5 Tactical Retreats 10 | . 2 1 . 3 2 2 . Traps | -11 -10 -9 -8 -7 -6 -6 -6 ------- Run | Yrd Mat Mat Mat Fac Fac Ext Cet Traps Triggered 5 | . . . . . 1 4 . Indirectly . | . . . . . . . . Trap Hack Attempts . | . . . . . . . . Triggered . | . . . . . . . . Disarmed . | . . . . . . . . Reprogrammed . | . . . . . . . . Reused . | . . . . . . . . Traps Extracted . | . . . . . . . . Installed . | . . . . . . . . Triggered . | . . . . . . . . Machines | -11 -10 -9 -8 -7 -6 -6 -6 ---------- Run | Yrd Mat Mat Mat Fac Fac Ext Cet Machines Disabled 8 | . . 1 1 1 1 4 . Max in Single Turn 2 | . . 1 1 1 1 2 . Garrison Access 1 | . . . . . 1 . . Machines Repaired . | . . . . . . . . Machines Dismantled 1 | . . . . . . 1 . Machines Sabotaged . | . . . . . . . . Overloaded Fab Kills . | . . . . . . . . Hacking | -11 -10 -9 -8 -7 -6 -6 -6 --------- Run | Yrd Mat Mat Mat Fac Fac Ext Cet Machines Accessed 12 | . . 2 . 3 2 5 . Terminals 7 | . . 1 . 1 . 5 . Fabricators 1 | . . . . . 1 . . Repair Stations . | . . . . . . . . Recycling Units . | . . . . . . . . Scanalyzers 3 | . . 1 . 2 . . . Garrison Access 1 | . . . . . 1 . . Total Hacks 29 | . . 4 . 7 4 14 . Successful 11 | . . 2 . 4 2 3 . Failed 18 | . . 2 . 3 2 11 . Catastrophic 4 | . . . . . 1 3 . Database Lockouts . | . . . . . . . . Manual . | . . . . . . . . Terminals 19 | . . 1 . 4 . 14 . Fabricators 1 | . . . . . 1 . . Repair Stations . | . . . . . . . . Recycling Units . | . . . . . . . . Scanalyzers 6 | . . 3 . 3 . . . Garrison Access 3 | . . . . . 3 . . Terminal Hacks 6 | . . 1 . 2 . 3 . Prototype ID Bank 1 | . . . . 1 . . . Open Door 2 | . . . . . . 2 . Alert Level 1 | . . . . . . 1 . Transport Status 1 | . . 1 . . . . . Zone Layout 1 | . . . . 1 . . . Fabricator Hacks 1 | . . . . . 1 . . Build 1 | . . . . . 1 . . Repair Station Hacks . | . . . . . . . . Recycling Unit Hacks . | . . . . . . . . Scanalyzer 3 | . . 1 . 2 . . . Retrieve Study 3 | . . 1 . 2 . . . Garrison Access Hacks 1 | . . . . . 1 . . Seal Access 1 | . . . . . 1 . . Unauthorized Hacks . | . . . . . . . . Terminals . | . . . . . . . . Fabricators . | . . . . . . . . Repair Stations . | . . . . . . . . Recycling Units . | . . . . . . . . Scanalyzers . | . . . . . . . . Garrison Access . | . . . . . . . . Data Cores Recovered 1 | . . . . . 1 . . Used . | . . . . . . . . Hacking Detections 8 | . . 1 . 1 2 4 . Full Trace Events 4 | . . 1 . 1 . 2 . Feedback Events . | . . . . . . . . Feedback Blocked . | . . . . . . . . Robot Schematics Acquired . | . . . . . . . . Robots Built . | . . . . . . . . Authchips . | . . . . . . . . Time . | . . . . . . . . Total Robot Build Rating . | . . . . . . . . Part Schematics Acquired . | . . . . . . . . Parts Built 2 | . . . . . 2 . . Authchips . | . . . . . . . . Time 64 | . . . . . 64 . . Total Part Build Rating 16 | . . . . . 16 . . Part Studies Acquired 3 | . . 1 . 2 . . . Parts Repaired . | . . . . . . . . Time . | . . . . . . . . Parts Recycled . | . . . . . . . . Recycled Matter . | . . . . . . . . Retrieved Matter . | . . . . . . . . Retrieved Components . | . . . . . . . . Parts Scanalyzed . | . . . . . . . . Part Schematics Acquired . | . . . . . . . . Parts Damaged . | . . . . . . . . Bothacking | -11 -10 -9 -8 -7 -6 -6 -6 ------------ Run | Yrd Mat Mat Mat Fac Fac Ext Cet Used RIF Installer . | . . . . . . . . Robots Hacked . | . . . . . . . . Non-combat . | . . . . . . . . Combat . | . . . . . . . . Robot Hacks Applied . | . . . . . . . . Relay Couplers Released . | . . . . . . . . Fabnet Peak Effective % . | . . . . . . . . Robots Rewired . | . . . . . . . . Allies Hacked . | . . . . . . . . Hacks Repelled . | . . . . . . . . Allies | -11 -10 -9 -8 -7 -6 -6 -6 -------- Run | Yrd Mat Mat Mat Fac Fac Ext Cet Total Allies 4 | . . . . . . 4 . Largest Group 4 | . . . . . . 4 . Highest-Rated Group 91 | . . . . . . 91 . Highest-Rated Ally 31 | . . . . . . 31 . Total Orders . | . . . . . . . . Ally Attacks 13 | . . . . . . 13 . Total Damage 407 | . . . . . . 407 . Kills 6 | . . . . . . 6 . Allies Corrupted 1 | . . . . . . 1 . Allies Melted . | . . . . . . . . Intel | -11 -10 -9 -8 -7 -6 -6 -6 ------- Run | Yrd Mat Mat Mat Fac Fac Ext Cet Active Infowar (turns) . | . . . . . . . . Robot Analysis Total . | . . . . . . . . Derelict Logs Recovered . | . . . . . . . . Drone Launches . | . . . . . . . . Drone Recoveries . | . . . . . . . . Exploration | -11 -10 -9 -8 -7 -6 -6 -6 ------------- Run | Yrd Mat Mat Mat Fac Fac Ext Cet Turns Passed 9480 | 82 430 922 606 2941 1543 2886 70 Spaces Moved 4466 | 48 194 468 336 1285 884 1233 18 Core 5 | 5 . . . . . . . Treads 2150 | 43 194 468 336 1109 . . . Legs 2311 | . . . . 176 884 1233 18 Wheels . | . . . . . . . . Hover . | . . . . . . . . Flight . | . . . . . . . . Fastest Speed 50 | 50 160 160 160 123 120 120 120 Average Speed 165 | 148 160 160 160 189 128 173 178 Slowest Speed 320 | 160 160 160 160 320 190 190 190 Overloaded Moves . | . . . . . . . . Propulsion Burnouts . | . . . . . . . . Robots Hopped . | . . . . . . . . Potential Cave-ins . | . . . . . . . . Cave-ins Triggered . | . . . . . . . . Exploration Rate (%) 33 | 4 42 35 37 29 15 92 10 Regions Visited 7 Branch Regions 2 Pre-discovered Areas . | . . . . . . . . Known Exits Taken . | . . . . . . . . Unknown Exits Taken 7 | 1 1 1 1 1 1 1 . Scrap Searched . | . . . . . . . . Spaces Dug 1 | . . . . . . 1 . Terrain Destroyed 91 | . . . . 33 33 23 2 Melee . | . . . . . . . . Projectile 47 | . . . . 16 6 23 2 AOE 44 | . . . . 17 27 . . Terrain Rammed . | . . . . . . . . Walls Destroyed . | . . . . . . . . Machines Disabled . | . . . . . . . . Actions | -11 -10 -9 -8 -7 -6 -6 -6 --------- Run | Yrd Mat Mat Mat Fac Fac Ext Cet Total 5725 | 59 251 566 375 1547 1178 1708 41 Wait 489 | . 7 9 8 77 169 211 8 Move 4459 | 47 193 467 335 1284 883 1232 18 Hop . | . . . . . . . . Pick Up 137 | 7 10 16 7 17 29 49 2 Fast Attach . | . . . . . . . . Attach 94 | 5 1 5 3 17 23 37 3 Detach 5 | . . . . 3 1 1 . Swap 46 | . 4 10 2 5 7 18 . Drop 46 | . 3 13 2 8 3 17 . Fire 395 | . 33 39 17 127 55 114 10 Melee . | . . . . . . . . Ram . | . . . . . . . . Kick 9 | . . . . 4 3 2 . Crush 13 | . . 7 1 5 . . . Escape Stasis 24 | . . . . . 5 19 . Rewire . | . . . . . . . . Trap . | . . . . . . . . Miscellaneous 8 | . . . . . . 8 . Route ------- -11/Scrapyard -10/Materials -9/Materials (discovered 2 exits: [*Mat] / [*Sto]) -8/Materials -7/Factory -6/Factory (discovered 2 exits: [*Low] / *Ext) -6/Extension (discovered 2 exits: [*Fac] / [*Cet]) -6/Cetus History --------- Turn | Location | Event 42 | -11/Scrapyard | Discovered new exit (range 15) 83 | -11/Scrapyard | Entered Materials 310 | -10/Materials | Build established: Mutant 482 | -10/Materials | Discovered new exit (range 11) 513 | -10/Materials | Entered another Materials area 513 | -9/Materials | Evolved 2 slots: Weapon x2 813 | -9/Materials | Build established: Gunner 1195 | -9/Materials | Discovered new exit (range 7) 1421 | -9/Materials | Discovered new exit (range 9) 1435 | -9/Materials | Entered another Materials area 1435 | -8/Materials | Evolved 2 slots: Utility x2 1745 | -8/Materials | Build established: Tank 2020 | -8/Materials | Discovered new exit (range 11) 2041 | -8/Materials | Entered Factory 2041 | -7/Factory | Evolved 2 slots: Propulsion x1, Utility x1 2229 | -7/Factory | Build established: Gunner 2838 | -7/Factory | Garrison activated, responded to threat 3235 | -7/Factory | Lost 3 parts (2n1w) 4155 | -7/Factory | Discovered new exit (range 14) 4428 | -7/Factory | Garrison activated, responded to threat 4659 | -7/Factory | Core integrity fell below 50% 4699 | -7/Factory | Lost 4 parts (1p1n1u1w) 4841 | -7/Factory | First assault squad dispatched 4982 | -7/Factory | Entered another Factory area 4982 | -6/Factory | Evolved 2 slots: Power x1, Utility x1 5104 | -6/Factory | Fabricated Imp. Thunder Leg (x2) 5236 | -6/Factory | Lost 3 parts (1u2w) 5341 | -6/Factory | Spotted B-75 Beast 5436 | -6/Factory | Garrison activated, responded to threat 5532 | -6/Factory | Destroyed 7 combat bots 5584 | -6/Factory | Garrison activated, responded to threat 5667 | -6/Factory | Lost 7 parts (1p3u3w) 6010 | -6/Factory | Discovered new exit (range 16) 6304 | -6/Factory | Discovered new exit (range 16) 6491 | -6/Factory | Lost 3 parts (2p1n) 6525 | -6/Factory | Entered Extension 6668 | -6/Extension | Spotted B-75 Beast 6862 | -6/Extension | Lost 4 parts (1p1n1u1w) 6895 | -6/Extension | Rescued a captive Derelict 6996 | -6/Extension | Rescued a captive Derelict 7079 | -6/Extension | Rescued a captive Derelict 7080 | -6/Extension | Rescued a captive Derelict 7463 | -6/Extension | Build established: Scavenger-Gunner 7589 | -6/Extension | Lost 3 parts (2p1u) 7770 | -6/Extension | System corruption reached 10% 7911 | -6/Extension | Destroyed B-75 Beast 7920 | -6/Extension | Spotted B-75 Beast 7950 | -6/Extension | Core integrity fell below 50% 7959 | -6/Extension | Destroyed B-75 Beast 7988 | -6/Extension | Lost 5 parts (1p2n2w) 8000 | -6/Extension | Disrupted transfer network 8385 | -6/Extension | Discovered new exit (range 16) 8385 | -6/Extension | Discovered new exit (range 16) 8401 | -6/Extension | Lost 5 parts (1n2u2w) 9109 | -6/Extension | Core integrity fell below 20% 9411 | -6/Extension | Entered Cetus 9435 | -6/Cetus | Spotted Cetus Guard 9435 | -6/Cetus | Spotted Cetus Guard 9440 | -6/Cetus | Spotted Cetus Guard 9442 | -6/Cetus | Spotted Cetus Guard 9475 | -6/Cetus | Destroyed Cetus Guard 9481 | -6/Cetus | Destroyed by Cetus Guard with Advanced KE Penetrator Last Messages --------------- 09469_ Critical hit (Destroy). 09469_ Hvy. Plasma Cannon destroyed. 09469_ Slug penetrates Cetus Guard. 09469_ Penetrated by Slug. 09471_ System corrupted: Heat flow error (+243). 09471_ Slug penetrates Cetus Guard. 09471_ Penetrated by Slug. 09472_ Flexi-carbon Leg destroyed. 09473_ Penetrated by Slug. 09473_ Slug penetrates Cetus Guard. 09473_ Penetrated by Slug. 09475_ Critical hit (Destroy). 09475_ Arm. Leg destroyed. 09475_ Slug penetrates Cetus Guard. 09475_ Cetus Guard destroyed. 09476_ Fusion Compressor destroyed. 09476_ Penetrated by Slug. 09479_ Flexi-carbon Leg destroyed. 09479_ Slug penetrates Cetus Guard. 09481_ Penetrated by Slug. Map ----- +----------------------------------------------------+ | ?????????????????????????????????????????? | | ?????????????????????????????????????????? | | ?????????????????????????????????????????? | | ?????????????????????????????????????????? | | ?????????????????????????????????????????? | | ?????????????????????????????????????????? | | ?????????????????????????????????????????? | | ?????????????????????????????????????????? | | ?????????????????????????????????????????? | | ?????????????????????????????????????????? | | ?????????????????????????????????????????? | | ?????????????????????????????????????????? | | ?????????????????????????????????????????? | | ?????????????????????????????????????????? | | ?????????????????????????????????????????? | | ?????????????????????????????????????????? | | ?????????????????????????????????????????? | | ?????????????????????????????????????????? | | ?????????????????????????????????????????? | | ?????????????????????????????????????????? | | ?????????????????????????????????????????? | | ????????????????????????? #??????????????? | | ??????????????????????? #??????????????? | | ????????????????????? ; ###????????????? | | ?############;;####;;;; ;;#????????????? | | ?# =@ = Y%! ???????? | | ?# !!* Y= ???????? | | ?# = Y ???????? | | ?############################### ????????? | | ?????????????????????????????????????????? | | ?????????????????????????????????????????? | | ?????????????????????????????????????????? | | ?????????????????????????????????????????? | | ?????????????????????????????????????????? | | ?????????????????????????????????????????? | | ?????????????????????????????????????????? | | ?????????????????????????????????????????? | | ?????????????????????????????????????????? | | ?????????????????????????????????????????? | | ?????????????????????????????????????????? | | ?????????????????????????????????????????? | | ?????????????????????????????????????????? | | ?????????????????????????????????????????? | | ?????????????????????????????????????????? | | ?????????????????????????????????????????? | | ?????????????????????????????????????????? | | ?????????????????????????????????????????? | | ?????????????????????????????????????????? | | ?????????????????????????????????????????? | | ?????????????????????????????????????????? | +----------------------------------------------------+ Best States ------------- Heat Dissipation 94 Energy Generation 31 Energy Capacity 520 Matter Stores 300 Matter Capacity 300 Sight Range 16 Terrain Scan Density 10 Additional Mass Support 9 Armor Coverage 600 Evasion (%) 70 Targeting Accuracy 8 Recoil Reduction 4 Item Schematics ----------------- None Robot Schematics ------------------ None Fabricated ------------ Imp. Thunder Leg | x2 | -6/Factory | Preloaded Repaired ---------- Nothing Studied --------- Minigun | -9/Materials | Hacked Flak Cannon | -7/Factory | Hacked Missile Launcher | -7/Factory | Hacked Alien Tech Used ----------------- None Achievements -------------- None Challenges ------------ None Game ------ Seed BeamScanCore Manual? 0 Play Time 00:56:45 Cumulative 34.2 hours Start 2025.10.30 @ 23:10:51 End 2025.10.31 @ 00:07:44 Sessions 1 Manual Loads 0 Difficulty Rogue Special Mode None Game No. 101 Rogue 101 Adventurer 0 Explorer 0 Win Type - Total 0 Types 0/0/0/0/0/0/0/0/0/0 Lore% 22 Gallery% 27 Achievement% 22 Wizard Run 0 Options --------- Layout 1 ASCII 0 Keyboard 0 Movement Numpad Keybinds 0 Fullscreen 2 Font 24/Smallcaps Map View 50x35 Zoom Use 0% Tactical HUD 1 Map Filters NONE Filters NONE Steam 1 RUN: 211c12b0-07d6-4a58-bebd-207d397b2042